fUST/lending_fUST_20250320
["ID","MTS","AMOUNT","RATE_DAILY","PERIOD"]
[356448401,1742461882240,-500.0,0.00033698,21]
[356448402,1742461882252,-6293.25,0.00033698,21]
[356448403,1742461882262,-500.0,0.00033698,21]
[356448404,1742461882274,-500.0,0.00033698,21]
[356448405,1742461882286,-500.0,0.00033698,21]
[356448406,1742461882296,-500.0,0.00033698,21]
[356448407,1742461882309,-550.31636377,0.00033698,21]
[356448408,1742461882319,-1364.21,0.00033698,21]
[356448409,1742461882329,-500.0,0.00033698,21]
[356448410,1742461882340,-500.0,0.00033698,21]
[356448411,1742461882351,-1215.72,0.00033698,21]
[356448412,1742461882361,-505.89,0.00033698,21]
[356448413,1742461882374,-500.0,0.00033698,21]
[356448414,1742461882386,-647.24,0.00033698,21]
[356448415,1742461882397,-1502.29,0.00033698,21]
[356448416,1742461882410,-744.02,0.00033698,21]
[356448417,1742461882422,-500.0,0.00033698,21]
[356448418,1742461882435,-500.0,0.00033698,21]
[356448419,1742461882448,-227387.66,0.00033698,7]
[356448420,1742461882465,-589.09,0.00033698,21]
[356448421,1742461882478,-2149.83,0.00033698,21]
[356448422,1742461882490,-854.03,0.00033698,21]
[356448423,1742461882501,-500.0,0.00033698,21]
[356448424,1742461882512,-3705.55,0.00033698,21]
[356448425,1742461882523,-14308.57,0.00033698,21]
[356448426,1742461882535,-2447.05,0.00033698,21]
[356448427,1742461882546,-500.0,0.00033698,21]
[356448428,1742461882557,-500.0,0.00033698,21]
[356448429,1742461882570,-573.38,0.00033698,21]
[356448430,1742461882582,-500.0,0.00033698,21]
[356448431,1742461882593,-2318.39,0.00033698,21]
[356448432,1742461882603,-528.45446131,0.00033698,21]
[356448433,1742461882613,-544.54,0.00033698,21]
[356448434,1742461882624,-500.0,0.00033698,21]
[356448435,1742461882634,-598.49127728,0.00033698,21]
[356448436,1742461882645,-531.2,0.00033698,21]
[356448437,1742461882655,-718.94,0.00033698,21]
[356448438,1742461882666,-5997.31,0.00033698,21]
[356448439,1742461882677,-3595.45,0.00033698,21]
[356448440,1742461882688,-533.72385545,0.00033698,21]
[356448441,1742461882698,-500.0,0.00033698,21]
[356448442,1742461882710,-500.0,0.00033698,21]
[356448443,1742461882722,-500.0,0.00033698,21]
[356448444,1742461882734,-500.0,0.00033698,21]
[356448445,1742461882745,-1787.33,0.00033698,21]
[356448446,1742461882756,-500.0,0.00033698,21]
[356448447,1742461882767,-500.0,0.00033698,21]
[356448448,1742461882777,-634.95,0.00033698,21]
[356448449,1742461882787,-3679.44,0.00033698,21]
[356448450,1742461882799,-500.0,0.00033698,21]
[356448451,1742461882809,-500.0,0.00033698,21]
[356448452,1742461882819,-43618.43,0.00033698,21]
[356448453,1742461882829,-660.82,0.00033698,21]
[356448454,1742461882840,-19529.54,0.00033698,21]
[356448455,1742461882851,-500.0,0.00033698,21]
[356448456,1742461882861,-1279.17,0.00033698,21]
[356448457,1742461882871,-891.51,0.00033698,21]
[356448458,1742461882882,-544.25,0.00033698,21]
[356448459,1742461882893,-500.0,0.00033698,21]
[356448460,1742461882904,-500.0,0.00033698,21]
[356448461,1742461882915,-635.21,0.00033698,21]
[356448462,1742461882926,-795.1,0.00033698,21]
[356448463,1742461882936,-500.0,0.00033698,21]
[356448464,1742461882947,-500.0,0.00033698,21]
[356448465,1742461882959,-500.0,0.00033698,21]
[356448466,1742461882970,-13088.35,0.00033698,21]
[356448467,1742461882980,-1007.56,0.00033698,21]
[356448468,1742461882991,-500.0,0.00033698,21]
[356448469,1742461883002,-504.79,0.00033698,21]
[356448470,1742461883013,-500.0,0.00033698,21]
[356448471,1742461883023,-636.24,0.00033698,21]
[356448472,1742461883034,-500.0,0.00033698,21]
[356448473,1742461883045,-500.0,0.00033698,21]
[356448474,1742461883057,-880.55,0.00033698,21]
[356448475,1742461883068,-500.0,0.00033698,21]
[356448476,1742461883079,-12043.91,0.00033698,21]
[356448477,1742461883089,-500.0,0.00033698,21]
[356448478,1742461883101,-2711.16,0.00033698,21]
[356448479,1742461883112,-500.0,0.00033698,21]
[356448480,1742461883123,-1224.78,0.00033698,21]
[356448481,1742461883133,-500.0,0.00033698,21]
[356448482,1742461883143,-10705.08,0.00033698,21]
[356448483,1742461883154,-500.0,0.00033698,21]
[356448484,1742461883165,-500.0,0.00033698,21]
[356448485,1742461883175,-500.0,0.00033698,21]
[356448486,1742461883186,-800.0,0.000337,2]
[356448487,1742461883197,-150.0,0.00033727,2]
[356448488,1742461883208,-800.0,0.00033746,2]
[356448489,1742461883219,-150.0,0.000338,14]
[356448490,1742461883230,-165.09905192,0.00033808,2]
[356448491,1742461883240,-358.0712624,0.00033836,30]
[356448492,1742461883250,-358.0712624,0.00033836,30]
[356448493,1742461883261,-358.0712624,0.00033836,30]
[356448494,1742461883272,-358.0712624,0.00033836,30]
[356448495,1742461883282,-358.0712624,0.00033836,30]
[356448496,1742461883293,-358.0712624,0.00033836,30]
[356448497,1742461883304,-457.15085023,0.0003388,2]
[356448498,1742461883315,-800.0,0.00033923,2]
[356448499,1742461883324,-160.0,0.00033971,10]
[356448500,1742461883334,-463.94485795,0.00033972,21]
[356448501,1742461883345,-500.0,0.00033972,21]
[356448502,1742461883356,-500.0,0.00033972,21]
[356448503,1742461883366,-500.0,0.00033972,21]
[356448504,1742461883377,-500.0,0.00033972,21]
[356448505,1742461883387,-500.0,0.00033972,21]
[356448506,1742461883397,-500.0,0.00033972,21]
[356448507,1742461883407,-500.0,0.00033972,21]
[356448508,1742461883417,-500.0,0.00033972,21]
[356448509,1742461883427,-500.0,0.00033972,21]
[356448510,1742461883437,-500.0,0.00033972,21]
[356448511,1742461883446,-500.0,0.00033972,21]
[356448512,1742461883456,-500.0,0.00033972,21]
[356448513,1742461883466,-500.0,0.00033972,21]
[356448514,1742461883475,-500.0,0.00033972,21]
[356448515,1742461883485,-500.0,0.00033972,21]
[356448516,1742461883497,-695.15,0.00033972,21]
[356448517,1742461883507,-500.0,0.00033972,21]
[356448518,1742461883516,-500.0,0.00033972,21]
[356448519,1742461883526,-500.0,0.00033972,21]
[356448520,1742461883535,-500.0,0.00033972,21]
[356448521,1742461883545,-1428.27,0.00033972,21]
[356448522,1742461883555,-500.0,0.00033972,21]
[356448523,1742461883564,-500.0,0.00033972,21]
[356448524,1742461883573,-422.15276303,0.00033972,21]
[356448525,1742461883582,-500.0,0.00033972,21]
[356448526,1742461883592,-500.0,0.00033972,21]
[356448527,1742461883603,-500.0,0.00033972,21]
[356448528,1742461883614,-634.53,0.00033972,21]
[356448529,1742461883623,-500.0,0.00033972,21]
[356448530,1742461883633,-1404.91,0.00033972,21]
[356448531,1742461883643,-500.0,0.00033972,21]
[356448532,1742461883652,-500.0,0.00033972,21]
[356448533,1742461883663,-566.83,0.00033972,21]
[356448534,1742461883674,-500.0,0.00033972,21]
[356448535,1742461883684,-1610.07,0.00033972,21]
[356448536,1742461883694,-2103.61,0.00033972,21]
[356448537,1742461883705,-500.0,0.00033972,21]
[356448538,1742461883715,-500.0,0.00033972,21]
[356448539,1742461883727,-500.0,0.00033972,21]
[356448540,1742461883737,-1432.87,0.00033972,21]
[356448541,1742461883747,-1129.64,0.00033972,21]
[356448542,1742461883756,-500.0,0.00033972,21]
[356448543,1742461883766,-1387.5,0.00033972,21]
[356448544,1742461883777,-500.0,0.00033972,21]
[356448545,1742461883786,-500.0,0.00033972,21]
[356448546,1742461883795,-500.0,0.00033972,21]
[356448547,1742461883807,-441.47159014,0.00033972,21]
[356448548,1742461883817,-500.0,0.00033972,21]
[356448549,1742461883826,-500.0,0.00033972,21]
[356448550,1742461883835,-500.0,0.00033972,21]
[356448551,1742461883845,-910.96,0.00033972,21]
[356448552,1742461883854,-500.0,0.00033972,21]
[356448553,1742461883864,-500.0,0.00033972,21]
[356448554,1742461883874,-500.0,0.00033972,21]
[356448555,1742461883884,-500.0,0.00033972,21]
[356448556,1742461883893,-500.0,0.00033972,21]
[356448557,1742461883904,-500.0,0.00033972,21]
[356448558,1742461883914,-500.0,0.00033972,21]
[356448559,1742461883925,-500.0,0.00033972,21]
[356448560,1742461883936,-619.69,0.00033972,21]
[356448561,1742461883946,-500.0,0.00033972,21]
[356448562,1742461883957,-774.65,0.00033972,21]
[356448563,1742461883969,-500.0,0.00033972,21]
[356448564,1742461883980,-500.0,0.00033972,21]
[356448565,1742461883990,-500.0,0.00033972,21]
[356448566,1742461884000,-500.0,0.00033972,120]
[356448567,1742461884010,-529.86202062,0.00033972,21]
[356448568,1742461884020,-500.0,0.00033972,21]
[356448569,1742461884029,-500.0,0.00033972,21]
[356448570,1742461884039,-500.0,0.00033972,21]
[356448571,1742461884049,-500.0,0.00033972,21]
[356448572,1742461884060,-385.3560199,0.00033972,21]
[356448573,1742461884069,-646.82,0.00033972,21]
[356448574,1742461884079,-500.0,0.00033972,21]
[356448575,1742461884089,-500.0,0.00033972,21]
[356448576,1742461884099,-668.27,0.00033972,21]
[356448577,1742461884108,-2316.69,0.00033972,21]
[356448578,1742461884117,-500.0,0.00033972,21]
[356448579,1742461884127,-500.0,0.00033972,21]
[356448580,1742461884137,-990.92,0.00033972,21]
[356448581,1742461884147,-527.11251524,0.00033972,21]
[356448582,1742461884156,-1090.13,0.00033972,21]
[356448583,1742461884166,-500.0,0.00033972,21]
[356448584,1742461884175,-1362.39,0.00033972,21]
[356448585,1742461884185,-345.64113734,0.00033972,21]
[356448586,1742461884195,-1927.43,0.00033972,21]
[356448587,1742461884205,-500.0,0.00033972,21]
[356448588,1742461884215,-500.0,0.00033972,7]
[356448589,1742461884224,-500.0,0.00033972,21]
[356448590,1742461884234,-500.0,0.00033972,21]
[356448591,1742461884243,-500.0,0.00033972,21]
[356448592,1742461884253,-500.0,0.00033972,21]
[356448593,1742461884450,-500.0,0.00033972,21]
[356448594,1742461884459,-780.4,0.00033972,21]
[356448595,1742461884468,-500.0,0.00033972,21]
[356448596,1742461884477,-500.0,0.00033972,21]
[356448597,1742461884486,-500.0,0.00033972,21]
[356448598,1742461884495,-500.0,0.00033972,21]
[356448599,1742461884505,-500.0,0.00033972,21]
[356448600,1742461884514,-500.0,0.00033972,21]
[356448601,1742461884523,-500.0,0.00033972,21]
[356448602,1742461884532,-500.0,0.00033972,21]
[356448603,1742461884541,-500.0,0.00033972,21]
[356448604,1742461884550,-1563.76,0.00033972,21]
[356448605,1742461884560,-686.6,0.00033972,21]
[356448606,1742461884569,-500.0,0.00033972,2]
[356448607,1742461884578,-500.0,0.00033972,21]
[356448608,1742461884587,-500.0,0.00033972,21]
[356448609,1742461884596,-500.0,0.00033972,21]
[356448610,1742461884605,-362.85046912,0.00033972,21]
[356448611,1742461884614,-500.0,0.00033972,21]
[356448612,1742461884623,-500.0,0.00033972,21]
[356448613,1742461884633,-500.0,0.00033972,21]
[356448614,1742461884642,-500.0,0.00033972,21]
[356448615,1742461884651,-1655.01,0.00033972,21]
[356448616,1742461884662,-500.0,0.00033972,21]
[356448617,1742461884671,-500.0,0.00033972,21]
[356448618,1742461884683,-500.0,0.00033972,21]
[356448619,1742461884694,-540.01,0.00033972,21]
[356448620,1742461884704,-500.0,0.00033972,14]
[356448621,1742461884715,-529.79,0.00033972,21]
[356448622,1742461884727,-500.0,0.00033972,21]
[356448623,1742461884737,-552.74,0.00033972,21]
[356448624,1742461884746,-792.16,0.00033972,21]
[356448625,1742461884757,-500.0,0.00033972,21]
[356448626,1742461884768,-500.0,0.00033972,21]
[356448627,1742461884778,-1685.63,0.00033972,21]
[356448628,1742461884789,-500.0,0.00033972,21]
[356448629,1742461884799,-583.69,0.00033972,21]
[356448630,1742461884808,-500.0,0.00033972,21]
[356448631,1742461884818,-1092.59,0.00033972,21]
[356448632,1742461884827,-649.31,0.00033972,21]
[356448633,1742461884836,-500.0,0.00033972,21]
[356448634,1742461884846,-520.54203979,0.00033972,21]
[356448635,1742461884856,-578.24289382,0.00033972,21]
[356448636,1742461884865,-500.0,0.00033972,21]
[356448637,1742461884875,-500.0,0.00033972,21]
[356448638,1742461884884,-500.0,0.00033972,21]
[356448639,1742461884893,-621.10843534,0.00033972,21]
[356448640,1742461884902,-1920.45,0.00033972,21]
[356448641,1742461884911,-575.54,0.00033972,21]
[356448642,1742461884921,-533.57,0.00033972,21]
[356448643,1742461884930,-500.0,0.00033972,21]
[356448644,1742461884940,-500.0,0.00033972,21]
[356448645,1742461884950,-1325.8,0.00033972,21]
[356448646,1742461884960,-500.0,0.00033972,21]
[356448647,1742461884969,-500.0,0.00033972,21]
[356448648,1742461884978,-500.0,0.00033972,21]
[356448649,1742461884987,-629.31843499,0.00033972,21]
[356448650,1742461884996,-500.0,0.00033972,21]
[356448651,1742461885005,-1482.65,0.00033972,21]
[356448652,1742461885015,-500.0,0.00033972,21]
[356448653,1742461885024,-500.0,0.00033972,21]
[356448654,1742461885033,-500.0,0.00033972,21]
[356448655,1742461885042,-500.0,0.00033972,21]
[356448656,1742461885052,-1002.11,0.00033972,21]
[356448657,1742461885062,-221.12314194,0.00033972,21]
[356448658,1742461885071,-500.0,0.00033972,21]
[356448659,1742461885080,-500.0,0.00033972,21]
[356448660,1742461885089,-500.0,0.00033972,21]
[356448661,1742461885098,-500.0,0.00033972,21]
[356448662,1742461885107,-500.0,0.00033972,21]
[356448663,1742461885117,-500.0,0.00033972,21]
[356448664,1742461885127,-1277.35,0.00033972,21]
[356448665,1742461885136,-500.0,0.00033972,21]
[356448666,1742461885145,-640.2249014,0.00033972,21]
[356448667,1742461885155,-612.1,0.00033972,21]
[356448668,1742461885164,-729.98,0.00033972,21]
[356448669,1742461885173,-500.0,0.00033972,21]
[356448670,1742461885183,-761.87,0.00033972,21]
[356448671,1742461885192,-536.94,0.00033972,21]
[356448672,1742461885202,-584.07,0.00033972,21]
[356448673,1742461885212,-500.0,0.00033972,21]
[356448674,1742461885221,-662.53,0.00033972,21]
[356448675,1742461885235,-500.0,0.00033972,21]
[356448676,1742461885245,-1192.63,0.00033972,21]
[356448677,1742461885254,-500.0,0.00033972,21]
[356448678,1742461885264,-532.61149664,0.00033972,21]
[356448679,1742461885273,-974.22,0.00033972,21]
[356448680,1742461885284,-691.33,0.00033972,21]
[356448681,1742461885293,-500.0,0.00033972,21]
[356448682,1742461885303,-500.0,0.00033972,21]
[356448683,1742461885312,-500.0,0.00033972,21]
[356448684,1742461885322,-500.0,0.00033972,21]
[356448685,1742461885331,-614.26,0.00033972,21]
[356448686,1742461885341,-500.0,0.00033972,21]
[356448687,1742461885350,-500.0,0.00033972,21]
[356448688,1742461885359,-500.0,0.00033972,21]
[356448689,1742461885369,-500.0,0.00033972,21]
[356448690,1742461885379,-753.03,0.00033972,21]
[356448691,1742461885388,-500.0,0.00033972,21]
[356448692,1742461885398,-562.00094703,0.00033972,21]
[356448693,1742461885407,-875.53,0.00033972,21]
[356448694,1742461885416,-548.57884003,0.00033972,21]
[356448695,1742461885426,-500.0,0.00033972,21]
[356448696,1742461885435,-1180.94,0.00033972,21]
[356448697,1742461885444,-500.0,0.00033972,21]
[356448698,1742461885454,-1130.54,0.00033972,21]
[356448699,1742461885463,-911.08,0.00033972,21]
[356448700,1742461885472,-558.15,0.00033972,21]
[356448701,1742461885482,-500.0,0.00033972,21]
[356448702,1742461885491,-500.0,0.00033972,21]
[356448703,1742461885500,-500.0,0.00033972,2]
[356448704,1742461885510,-500.0,0.00033972,21]
[356448705,1742461885519,-500.0,0.00033972,21]
[356448706,1742461885528,-732.77,0.00033972,21]
[356448707,1742461885538,-500.0,0.00033972,21]
[356448708,1742461885547,-641.16,0.00033972,21]
[356448709,1742461885557,-500.0,0.00033972,21]
[356448710,1742461885566,-2588.15,0.00033972,21]
[356448711,1742461885576,-305.25,0.00033972,7]
[356448712,1742461885585,-2770.24,0.00033972,21]
[356448713,1742461885595,-534.53822871,0.00033972,21]
[356448714,1742461885604,-655.48,0.00033972,21]
[356448715,1742461885614,-500.0,0.00033972,21]
[356448716,1742461885623,-1807.0,0.00033972,21]
[356448717,1742461885633,-500.0,0.00033972,21]
[356448718,1742461885643,-500.0,0.00033972,21]
[356448719,1742461885652,-1865.76,0.00033972,21]
[356448720,1742461885663,-1696.68,0.00033972,21]
[356448721,1742461885672,-500.0,0.00033972,21]
[356448722,1742461885681,-658.72,0.00033972,21]
[356448723,1742461885692,-500.0,0.00033972,21]
[356448724,1742461885701,-500.0,0.00033972,21]
[356448725,1742461885711,-500.0,0.00033972,21]
[356448726,1742461885721,-975.97,0.00033972,21]
[356448727,1742461885734,-500.0,0.00033972,21]
[356448728,1742461885743,-500.0,0.00033972,21]
[356448729,1742461885752,-733.17,0.00033972,21]
[356448730,1742461885762,-161.64465495,0.00033972,21]
[356448731,1742461885774,-500.0,0.00033972,21]
[356448732,1742461885784,-824.24,0.00033972,21]
[356448733,1742461885793,-903.13,0.00033972,21]
[356448734,1742461885804,-500.0,0.00033972,21]
[356448735,1742461885813,-2048.73,0.00033972,21]
[356448736,1742461885824,-2000.0,0.00033972,2]
[356448737,1742461885834,-621.17,0.00033972,21]
[356448738,1742461885843,-1685.17,0.00033972,21]
[356448739,1742461885852,-1596.9,0.00033972,21]
[356448740,1742461885863,-500.0,0.00033972,21]
[356448741,1742461885876,-500.0,0.00033972,21]
[356448742,1742461885891,-507.82090341,0.00033972,21]
[356448743,1742461885900,-500.0,0.00033972,21]
[356448744,1742461885909,-898.4,0.00033972,21]
[356448745,1742461885919,-500.0,0.00033972,21]
[356448746,1742461885928,-1000.0,0.00033972,21]
[356448747,1742461885937,-672.21,0.00033972,21]
[356448748,1742461885947,-1130.2,0.00033972,21]
[356448749,1742461885956,-687.1,0.00033972,21]
[356448750,1742461885966,-500.0,0.00033972,21]
[356448751,1742461885975,-1232.97,0.00033972,21]
[356448752,1742461885984,-500.0,0.00033972,21]
[356448753,1742461885993,-385.11978482,0.00033972,21]
[356448754,1742461886003,-500.0,0.00033972,21]
[356448755,1742461886012,-500.0,0.00033972,21]
[356448756,1742461886021,-1859.15,0.00033972,21]
[356448757,1742461886032,-500.0,0.00033972,21]
[356448758,1742461886041,-500.0,0.00033972,21]
[356448759,1742461886051,-1253.26,0.00033972,21]
[356448760,1742461886060,-500.0,0.00033972,21]
[356448761,1742461886070,-687.5,0.00033972,21]
[356448762,1742461886079,-500.0,0.00033972,21]
[356448763,1742461886088,-500.0,0.00033972,21]
[356448764,1742461886098,-500.0,0.00033972,21]
[356448765,1742461886107,-235.90298738,0.00033972,21]
[356448766,1742461886116,-1207.88,0.00033972,21]
[356448767,1742461886126,-1961.79,0.00033972,21]
[356448768,1742461886135,-781.15,0.00033972,21]
[356448769,1742461886145,-500.0,0.00033972,21]
[356448770,1742461886154,-500.0,0.00033972,21]
[356448771,1742461886164,-500.0,0.00033972,21]
[356448772,1742461886173,-500.0,0.00033972,21]
[356448773,1742461886183,-1061.76,0.00033972,21]
[356448774,1742461886192,-1171.37,0.00033972,21]
[356448775,1742461886201,-500.0,0.00033972,21]
[356448776,1742461886211,-500.0,0.00033972,21]
[356448777,1742461886221,-500.0,0.00033972,21]
[356448778,1742461886231,-736.59,0.00033972,21]
[356448779,1742461886241,-500.0,0.00033972,21]
[356448780,1742461886251,-500.0,0.00033972,21]
[356448781,1742461886260,-500.0,0.00033972,21]
[356448782,1742461886269,-500.0,0.00033972,21]
[356448783,1742461886279,-500.0,0.00033972,21]
[356448784,1742461886288,-500.0,0.00033972,21]
[356448785,1742461886298,-660.49,0.00033972,21]
[356448786,1742461886307,-1358.55,0.00033972,21]
[356448787,1742461886316,-609.52,0.00033972,21]
[356448788,1742461886326,-500.0,0.00033972,21]
[356448789,1742461886335,-1210.31,0.00033972,21]
[356448790,1742461886344,-1714.71,0.00033972,21]
[356448791,1742461886353,-2065.34,0.00033972,21]
[356448792,1742461886363,-500.0,0.00033972,21]
[356448793,1742461886373,-500.0,0.00033972,21]
[356448794,1742461886382,-511.96169935,0.00033972,21]
[356448795,1742461886391,-500.0,0.00033972,21]
[356448796,1742461886400,-514.77072745,0.00033972,21]
[356448797,1742461886410,-3075.26,0.00033972,2]
[356448798,1742461886419,-675.19,0.00033972,21]
[356448799,1742461886429,-578.01261974,0.00033972,21]
[356448800,1742461886438,-737.09,0.00033972,120]
[356448801,1742461886447,-543.19330911,0.00033972,21]
[356448802,1742461886457,-1851.11,0.00033972,21]
[356448803,1742461886466,-500.0,0.00033972,21]
[356448804,1742461886476,-2009.68,0.00033972,21]
[356448805,1742461886485,-500.0,0.00033972,21]
[356448806,1742461886495,-942.57,0.00033972,21]
[356448807,1742461886504,-500.0,0.00033972,21]
[356448808,1742461886514,-500.0,0.00033972,21]
[356448809,1742461886523,-964.88,0.00033972,21]
[356448810,1742461886533,-500.0,0.00033972,21]
[356448811,1742461886543,-2419.44,0.00033972,21]
[356448812,1742461886552,-233.90006626,0.00033972,21]
[356448813,1742461886562,-2542.88,0.00033972,21]
[356448814,1742461886571,-685.1,0.00033972,21]
[356448815,1742461886580,-1476.12,0.00033972,21]
[356448816,1742461886589,-500.0,0.00033972,21]
[356448817,1742461886599,-500.0,0.00033972,21]
[356448818,1742461886609,-702.93821054,0.00033972,21]
[356448819,1742461886620,-500.0,0.00033972,21]
[356448820,1742461886630,-4351.88,0.00033972,21]
[356448821,1742461886639,-500.0,0.00033972,21]
[356448822,1742461886648,-500.0,0.00033972,21]
[356448823,1742461886658,-500.0,0.00033972,21]
[356448824,1742461886669,-650.64,0.00033972,21]
[356448825,1742461886678,-2530.87,0.00033972,21]
[356448826,1742461886687,-500.0,0.00033972,21]
[356448827,1742461886696,-355.40341603,0.00033972,21]
[356448828,1742461886706,-500.0,0.00033972,21]
[356448829,1742461886715,-500.0,0.00033972,21]
[356448830,1742461886726,-2689.17,0.00033972,21]
[356448831,1742461886738,-578.49,0.00033972,21]
[356448832,1742461886747,-500.0,0.00033972,21]
[356448833,1742461886756,-589.72,0.00033972,21]
[356448834,1742461886766,-500.0,0.00033972,21]
[356448835,1742461886775,-500.0,0.00033972,21]
[356448836,1742461886784,-1965.62,0.00033972,21]
[356448837,1742461886794,-996.84,0.00033972,21]
[356448838,1742461886804,-1943.3,0.00033972,21]
[356448839,1742461886814,-601.1155208,0.00033972,21]
[356448840,1742461886823,-1404.37,0.00033972,21]
[356448841,1742461886832,-496.85906843,0.00033972,21]
[356448842,1742461886841,-500.0,0.00033972,21]
[356448843,1742461886850,-1002.8,0.00033972,21]
[356448844,1742461886859,-1103.23,0.00033972,21]
[356448845,1742461886868,-4224.96,0.00033972,21]
[356448846,1742461886877,-500.0,0.00033972,21]
[356448847,1742461886886,-772.48,0.00033972,21]
[356448848,1742461886896,-500.0,0.00033972,21]
[356448849,1742461886905,-500.0,0.00033972,21]
[356448850,1742461886914,-1769.17,0.00033972,21]
[356448851,1742461886924,-4213.65,0.00033972,21]
[356448852,1742461886933,-2216.52,0.00033972,21]
[356448853,1742461886942,-558.58,0.00033972,21]
[356448854,1742461886951,-500.0,0.00033972,21]
[356448855,1742461886960,-500.0,0.00033972,7]
[356448856,1742461886969,-537.54,0.00033972,21]
[356448857,1742461886978,-500.0,0.00033972,21]
[356448858,1742461886987,-500.0,0.00033972,21]
[356448859,1742461886997,-1007.97,0.00033972,21]
[356448860,1742461887006,-500.0,0.00033972,21]
[356448861,1742461887015,-5141.99,0.00033972,21]
[356448862,1742461887024,-490.35379628,0.00033972,21]
[356448863,1742461887033,-500.0,0.00033972,21]
[356448864,1742461887043,-632.59,0.00033972,21]
[356448865,1742461887052,-500.0,0.00033972,21]
[356448866,1742461887061,-955.84,0.00033972,21]
[356448867,1742461887070,-500.0,0.00033972,7]
[356448868,1742461887080,-605.08,0.00033972,21]
[356448869,1742461887090,-500.0,0.00033972,21]
[356448870,1742461887100,-645.24,0.00033972,21]
[356448871,1742461887110,-500.0,0.00033972,21]
[356448872,1742461887119,-793.78,0.00033972,21]
[356448873,1742461887128,-1148.83,0.00033972,21]
[356448874,1742461887137,-500.0,0.00033972,21]
[356448875,1742461887147,-829.94,0.00033972,21]
[356448876,1742461887157,-500.0,0.00033972,21]
[356448877,1742461887167,-500.0,0.00033972,21]
[356448878,1742461887176,-500.0,0.00033972,21]
[356448879,1742461887185,-500.0,0.00033972,21]
[356448880,1742461887194,-500.0,0.00033972,21]
[356448881,1742461887204,-500.0,0.00033972,21]
[356448882,1742461887213,-500.0,0.00033972,21]
[356448883,1742461887223,-597.9,0.00033972,21]
[356448884,1742461887232,-2456.66,0.00033972,21]
[356448885,1742461887241,-500.0,0.00033972,21]
[356448886,1742461887250,-1085.47,0.00033972,21]
[356448887,1742461887259,-500.0,0.00033972,21]
[356448888,1742461887269,-1445.83,0.00033972,21]
[356448889,1742461887278,-649.77,0.00033972,21]
[356448890,1742461887287,-1355.11,0.00033972,21]
[356448891,1742461887296,-1787.39,0.00033972,21]
[356448892,1742461887305,-500.0,0.00033972,21]
[356448893,1742461887314,-2452.84,0.00033972,21]
[356448894,1742461887323,-1890.01,0.00033972,21]
[356448895,1742461887332,-1817.26,0.00033972,21]
[356448896,1742461887342,-1765.11,0.00033972,21]
[356448897,1742461887351,-500.0,0.00033972,21]
[356448898,1742461887360,-2034.71,0.00033972,21]
[356448899,1742461887369,-500.0,0.00033972,21]
[356448900,1742461887378,-500.0,0.00033972,21]